[Event "Dutch Open-ch 2019"]
[Site "Dieren"]
[Date "2019.07.30"]
[Round "7.17"]
[White "Nair, Sanjeev"]
[Black "Konings, Frans"]
[Result "1/2-1/2"]
[ECO "C77"]
[WhiteElo "2045"]
[BlackElo "2208"]
[Annotator "NA"]
[PlyCount "212"]
[EventDate "2019.07.23"]
[EventType "swiss"]
[EventCountry "NED"]
[SourceTitle "playchess.com"]
[Source "ChessBase"]
[SourceQuality "1"]
[TimeControl "40/5400+30:1800+30"]

1. e4 {[%emt 0:00:00]} e5 {[%emt 1:30:30]} 2. Nf3 {[%emt 0:00:00]} Nc6 {[%emt 0:00:00]} 3. Bb5 {[%emt 0:00:00]} a6 {[%emt 0:00:00]} 4. Ba4 {[%emt 0:00:00]} Nf6 {[%emt 0:00:00]} 5. d3 {[%emt 0:00:00]} b5 {[%emt 0:00:00]} 6. Bb3 {[%emt 0:00:04]} Be7 {[%emt 0:00:00]} 7. Nc3 {[%emt 0:00:14]} d6 {[%emt 0:00:00]} 8. a3 {[%emt 0:00:08]} O-O {[%emt 0:00:00]} 9. Be3 {[%emt 0:02:44]} Na5 {[%emt 0:00:00]} 10. Ba2 {[%emt 0:00:07]} c5 {[%emt 0:00:00]} 11. b4 {[%emt 0:00:09]} Nb7 {[%emt 0:00:00]} 12. Nd5 {[%emt 0:02:32]} Be6 {[%emt 0:00:00]} 13. Nxf6+ {[%emt 0:20:46]} Bxf6 {[%emt 0:00:00]} 14. Bxe6 {[%emt 0:00:06]} fxe6 {[%emt 0:00:00]} 15. O-O {[%emt 0:00:26]} Qc7 {[%emt 0:00:00]} 16. c3 {[%emt 0:08:57]} Rfc8 {[%emt 0:00:00]} 17. Qb1 {[%emt 0:04:59]} c4 {[%emt 0:00:00]} 18. dxc4 {[%emt 0:04:24]} Qxc4 {[%emt 0:00:00]} 19. Rc1 {[%emt 0:00:10]} d5 {[%emt 0:00:00]} 20. Nd2 {[%emt 0:08:39]} Qc6 {[%emt 0:00:00]} 21. Qd3 {[%emt 0:08:18]} Nd6 {[%emt 0:00:00]} 22. Bc5 {[%emt 0:03:36]} Bg5 {[%emt 0:00:00]} 23. exd5 {[%emt 0:03:27]} exd5 {[%emt 0:00:00]} 24. Rd1 {[%emt 0:02:07]} e4 {[%emt 0:00:00]} 25. Qg3 {[%emt 0:03:18]} Bxd2 {[%emt 0:00:00]} 26. Rxd2 {[%emt 0:00:42]} Nc4 {[%emt 0:00:00]} 27. Rd4 {[%emt 0:01:45]} a5 {[%emt 0:00:00]} 28. Rad1 {[%emt 0:01:03]} axb4 {[%emt 0:00:00]} 29. axb4 {[%emt 0:05:36]} Nb2 {[%emt 0:00:00]} 30. Re1 {[%emt 0:06:11]} Na4 {[%emt 0:00:00]} 31. h3 {[%emt 0:03:32]} h6 {[%emt 0:00:00]} 32. Red1 {[%emt 0:02:25]} Rd8 {[%emt 0:00:00]} 33. R4d2 {[%emt 0:05:04]} Nxc5 {[%emt 0:00:00]} 34. bxc5 {[%emt 0:00:05]} Rd7 {[%emt 0:00:00]} 35. Qe5 {[%emt 0:01:20]} Rad8 {[%emt 0:00:00]} 36. Qd4 {[%emt 0:00:14]} Kf7 {[%emt 0:00:00]} 37. Kh1 {[%emt 0:02:54]} Rc8 {[%emt 0:00:00]} 38. Qe5 {[%emt 0:00:38]} Qe6 {[%emt 0:00:00]} 39. Qh5+ {[%emt 0:00:34]} Kg8 {[%emt 0:00:00]} 40. Rxd5 {[%emt 0:02:09]} g6 {[%emt 0:00:00]} 41. Qg4 {[%emt 0:01:46]} Qxg4 {[%emt 0:00:00]} 42. hxg4 {[%emt 0:01:29]} Rxd5 {[%emt 0:00:00]} 43. Rxd5 {[%emt 0:00:07]} Kf7 {[%emt 0:00:25]} 44. Re5 {[%emt 0:06:26]} Kf6 {[%emt 0:00:10]} 45. Rxe4 {[%emt 0:00:16]} Rxc5 {[%emt 0:00:04]} 46. Rb4 {[%emt 0:02:32]} Kg5 {[%emt 0:00:22]} 47. f3 {[%emt 0:01:22]} Kf6 {[%emt 0:04:26]} 48. Kg1 {[%emt 0:01:32]} Rxc3 {[%emt 0:00:41]} 49. Rxb5 {[%emt 0:00:04]} Rc4 {[%emt 0:00:17]} 50. Kf2 {[%emt 0:01:21]} Ra4 {[%emt 0:00:12]} 51. Kg3 {[%emt 0:00:10]} Rc4 {[%emt 0:00:29]} 52. Rb6+ {[%emt 0:00:33]} Kf7 {[%emt 0:00:10]} 53. Rb7+ {[%emt 0:00:34]} Kg8 {[%emt 0:01:08]} 54. f4 {[%emt 0:07:39]} Rc3+ {[%emt 0:00:40]} 55. Kf2 {[%emt 0:01:29]} Rc2+ {[%emt 0:00:33]} 56. Kf3 {[%emt 0:00:08]} Rc3+ {[%emt 0:00:20]} 57. Kf2 {[%emt 0:03:33]} Rc2+ {[%emt 0:00:06]} 58. Kg3 {[%emt 0:00:09]} Rc3+ {[%emt 0:00:07]} 59. Kh2 {[%emt 0:00:40]} Rc4 {[%emt 0:00:33]} 60. g3 {[%emt 0:00:31]} Rc2+ {[%emt 0:00:15]} 61. Kh3 {[%emt 0:00:04]} Rf2 {[%emt 0:00:19]} 62. Rb8+ {[%emt 0:01:00]} Kg7 {[%emt 0:00:07]} 63. Rb7+ {[%emt 0:00:01]} Kg8 {[%emt 0:00:08]} 64. Ra7 {[%emt 0:00:12]} Kh8 {[%emt 0:00:15]} 65. Ra5 {[%emt 0:01:23]} Kg7 {[%emt 0:00:18]} 66. g5 {[%emt 0:02:02]} h5 {[%emt 0:00:28]} 67. Ra7+ {[%emt 0:00:04]} Kg8 {[%emt 0:00:06]} 68. Ra6 {[%emt 0:00:21]} Kg7 {[%emt 0:00:06]} 69. Rf6 {[%emt 0:00:06]} Kh7 {[%emt 0:00:36]} 70. Rf7+ {[%emt 0:01:31]} Kg8 {[%emt 0:00:05]} 71. Rf6 {[%emt 0:00:02]} Kg7 {[%emt 0:00:06]} 72. g4 {[%emt 0:00:10]} Rf3+ {[%emt 0:00:44]} 73. Kh4 {[%emt 0:00:10]} hxg4 {[%emt 0:00:10]} 74. Kxg4 {[%emt 0:00:02]} Ra3 {[%emt 0:00:11]} 75. Rb6 {[%emt 0:00:18]} Ra7 {[%emt 0:00:09]} 76. Kf3 {[%emt 0:01:36]} Rc7 {[%emt 0:00:57]} 77. Ke4 {[%emt 0:01:22]} Rc5 {[%emt 0:03:17]} 78. Rb7+ {[%emt 0:00:29]} Kf8 {[%emt 0:00:07]} 79. Rd7 {[%emt 0:00:27]} Rf5 {[%emt 0:01:55]} 80. Rd5 {[%emt 0:01:49]} Rf7 {[%emt 0:00:07]} 81. Rd8+ {[%emt 0:02:01]} Kg7 {[%emt 0:00:06]} 82. Re8 {[%emt 0:00:08]} Ra7 {[%emt 0:00:22]} 83. Rd8 {[%emt 0:01:14]} Kf7 {[%emt 0:01:24]} 84. Ke5 {[%emt 0:00:54]} Re7+ {[%emt 0:02:25]} 85. Kd5 {[%emt 0:00:19]} Ra7 {[%emt 0:00:41]} 86. Rd6 {[%emt 0:01:58]} Ra5+ {[%emt 0:00:24]} 87. Ke4 {[%emt 0:00:07]} Ra7 {[%emt 0:01:33]} 88. Ke5 {[%emt 0:00:14]} Re7+ {[%emt 0:00:41]} 89. Kd5 {[%emt 0:00:53]} Ra7 {[%emt 0:00:08]} 90. Rf6+ {[%emt 0:00:58]} Kg7 {[%emt 0:00:06]} 91. Rc6 {[%emt 0:00:29]} Rf7 {[%emt 0:01:07]} 92. Ke5 {[%emt 0:00:26]} Rf5+ {[%emt 0:00:15]} 93. Ke4 {[%emt 0:00:05]} Rf7 {[%emt 0:00:19]} 94. Rd6 {[%emt 0:00:25]} Ra7 {[%emt 0:02:03]} 95. Rd5 {[%emt 0:01:26]} Kf7 {[%emt 0:00:15]} 96. f5 {[%emt 0:00:07]} gxf5+ {[%emt 0:00:57]} 97. Kxf5 {[%emt 0:00:04]} Kg7 {[%emt 0:00:34]} 98. Rb5 {[%emt 0:00:26]} Rc7 {[%emt 0:00:07]} 99. Kg4 {[%emt 0:00:21]} Ra7 {[%emt 0:00:08]} 100. Rb6 {[%emt 0:00:12]} Rc7 {[%emt 0:00:06]} 101. Kh5 {[%emt 0:00:06]} Ra7 {[%emt 0:00:12]} 102. Rg6+ {[%emt 0:00:35]} Kh7 {[%emt 0:00:06]} 103. Rb6 {[%emt 0:01:04]} Kg7 {[%emt 0:00:08]} 104. Rb5 {[%emt 0:00:50]} Rc7 {[%emt 0:00:06]} 105. g6 {[%emt 0:02:15]} Rc1 {[%emt 0:00:05]} 106. Rb7+ {[%emt 0:00:00]} Kg8 {[%emt 0:00:05]} 1/2-1/2

[Event "Dutch Open-ch 2019"]
[Site "Dieren"]
[Date "2019.07.30"]
[Round "7.18"]
[White "Mesman, Edwyn"]
[Black "Van Roon, Sjoerd"]
[Result "0-1"]
[ECO "E92"]
[WhiteElo "2204"]
[BlackElo "2072"]
[Annotator "NA"]
[PlyCount "80"]
[EventDate "2019.07.23"]
[EventType "swiss"]
[EventCountry "NED"]
[SourceTitle "playchess.com"]
[Source "ChessBase"]
[SourceQuality "1"]
[TimeControl "40/5400+30:1800+30"]

1. d4 {[%emt 0:01:41]} Nf6 {[%emt 0:00:00]} 2. c4 {[%emt 0:00:09]} g6 {[%emt 0:00:00]} 3. Nc3 {[%emt 0:00:24]} Bg7 {[%emt 0:00:00]} 4. e4 {[%emt 0:03:42]} O-O {[%emt 0:00:12]} 5. Nf3 {[%emt 0:00:51]} d6 {[%emt 0:00:08]} 6. Be2 {[%emt 0:00:05]} e5 {[%emt 0:00:47]} 7. Be3 {[%emt 0:00:15]} Nc6 {[%emt 0:09:27]} 8. d5 {[%emt 0:01:10]} Ne7 {[%emt 0:00:10]} 9. Nd2 {[%emt 0:00:15]} Nd7 {[%emt 0:02:14]} 10. O-O {[%emt 0:10:19]} f5 {[%emt 0:04:20]} 11. f3 {[%emt 0:00:08]} f4 {[%emt 0:02:29]} 12. Bf2 {[%emt 0:00:06]} g5 {[%emt 0:00:50]} 13. b4 {[%emt 0:19:01]} Nf6 {[%emt 0:06:49]} 14. c5 {[%emt 0:07:54]} h5 {[%emt 0:02:04]} 15. h3 {[%emt 0:00:43]} Ng6 {[%emt 0:05:13]} 16. cxd6 {[%emt 0:01:33]} cxd6 {[%emt 0:00:47]} 17. Nc4 {[%emt 0:00:34]} g4 {[%emt 1:03:00]} 18. fxg4 {[%emt 0:05:01]} hxg4 {[%emt 0:00:00]} 19. hxg4 {[%emt 0:00:48]} Kf7 {[%emt 0:00:00]} 20. Bf3 {[%emt 0:02:22]} Ne8 {[%emt 0:00:00]} 21. Qd3 {[%emt 0:08:43]} Rh8 {[%emt 0:00:00]} 22. Nb5 {[%emt 0:04:39]} Bf6 {[%emt 0:00:00]} 23. Nxa7 {[%emt 0:18:12]} Bh4 {[%emt 0:00:00]} 24. Bxh4 {[%emt 0:00:21]} Qxh4 {[%emt 0:00:00]} 25. Nxc8 {[%emt 0:00:23]} Rxc8 {[%emt 0:00:00]} 26. Rac1 {[%emt 0:01:12]} b5 {[%emt 0:00:00]} 27. a4 {[%emt 0:09:50]} Rxc4 {[%emt 0:00:00]} 28. Rxc4 {[%emt 0:00:05]} bxc4 {[%emt 0:00:00]} 29. Qxc4 {[%emt 0:00:04]} Qg3 {[%emt 0:00:00]} 30. b5 {[%emt 0:03:28]} Nh4 {[%emt 0:00:27]} 31. Qe2 {[%emt 0:00:32]} Nf6 {[%emt 0:00:56]} 32. b6 {[%emt 0:00:42]} Qh2+ {[%emt 0:00:39]} 33. Kf2 {[%emt 0:00:06]} Nxf3 {[%emt 0:00:05]} 34. Qxf3 {[%emt 0:00:19]} Rc8 {[%emt 0:03:27]} 35. b7 {[%emt 0:01:18]} Rc2+ {[%emt 0:00:21]} 36. Ke1 {[%emt 0:00:14]} Rb2 {[%emt 0:00:09]} 37. g5 {[%emt 0:00:27]} Qh4+ {[%emt 0:00:57]} 38. g3 {[%emt 0:00:23]} Qh2 {[%emt 0:00:22]} 39. Rf2 {[%emt 0:00:57]} Qg1+ {[%emt 0:00:06]} 40. Rf1 {[%emt 0:00:03]} Qd4 {[%emt 0:00:08]} 0-1

[Event "Dutch Open-ch 2019"]
[Site "Dieren"]
[Date "2019.07.30"]
[Round "7.19"]
[White "Tiwari, Ashwani"]
[Black "Evengroen, Henk-Jan"]
[Result "0-1"]
[ECO "C86"]
[WhiteElo "2089"]
[BlackElo "2176"]
[Annotator "NA"]
[PlyCount "64"]
[EventDate "2019.07.23"]
[EventType "swiss"]
[EventCountry "NED"]
[SourceTitle "playchess.com"]
[Source "ChessBase"]
[SourceQuality "1"]
[TimeControl "40/5400+30:1800+30"]

1. e4 {[%emt 0:00:00]} e5 {[%emt 0:00:00]} 2. Nf3 {[%emt 0:00:00]} Nc6 {[%emt 0:00:00]} 3. Bb5 {[%emt 0:00:00]} a6 {[%emt 0:00:00]} 4. Ba4 {[%emt 0:00:02]} Nf6 {[%emt 0:00:00]} 5. O-O {[%emt 0:00:30]} Be7 {[%emt 0:00:00]} 6. Qe2 {[%emt 0:00:32]} b5 {[%emt 0:00:14]} 7. Bb3 {[%emt 0:00:07]} O-O {[%emt 0:00:06]} 8. c3 {[%emt 0:00:32]} d5 {[%emt 0:04:34]} 9. d3 {[%emt 0:00:09]} d4 {[%emt 0:02:48]} 10. a3 {[%emt 0:03:03]} Rb8 {[%emt 0:09:14]} 11. Nbd2 {[%emt 0:03:05]} dxc3 {[%emt 0:07:09]} 12. bxc3 {[%emt 0:00:37]} a5 {[%emt 0:00:04]} 13. Bb2 {[%emt 0:14:38]} b4 {[%emt 0:02:17]} 14. cxb4 {[%emt 0:02:36]} axb4 {[%emt 0:01:12]} 15. Nxe5 {[%emt 0:13:19]} Nxe5 {[%emt 0:04:07]} 16. Bxe5 {[%emt 0:00:09]} Nd7 {[%emt 0:12:21]} 17. Bb2 {[%emt 0:16:38]} Nc5 {[%emt 0:02:10]} 18. Bc4 {[%emt 0:03:53]} Na4 {[%emt 0:03:04]} 19. Be5 {[%emt 0:00:50]} bxa3 {[%emt 0:04:30]} 20. Rfc1 {[%emt 0:00:44]} Rb2 {[%emt 0:10:43]} 21. Qe3 {[%emt 0:04:15]} Kh8 {[%emt 0:09:21]} 22. Nb1 {[%emt 0:14:28]} f6 {[%emt 0:10:26]} 23. Bxb2 {[%emt 0:11:08]} Bc5 {[%emt 0:02:07]} 24. Qd2 {[%emt 0:04:44]} axb2 {[%emt 0:00:09]} 25. Rxa4 {[%emt 0:00:10]} bxc1=Q+ {[%emt 0:00:00]} 26. Qxc1 {[%emt 0:00:15]} f5 {[%emt 0:02:34]} 27. Bd5 {[%emt 0:02:51]} Bxf2+ {[%emt 0:01:46]} 28. Kxf2 {[%emt 0:01:26]} fxe4+ {[%emt 0:00:06]} 29. Kg1 {[%emt 0:00:18]} Qxd5 {[%emt 0:01:28]} 30. dxe4 {[%emt 0:01:56]} Qb5 {[%emt 0:00:13]} 31. Nc3 {[%emt 0:00:51]} Qc5+ {[%emt 0:00:11]} 32. Kh1 {[%emt 0:00:07]} Qxc3 {[%emt 0:00:04]} 0-1

[Event "Dutch Open-ch 2019"]
[Site "Dieren"]
[Date "2019.07.30"]
[Round "7.20"]
[White "Mulder, Bart-Piet"]
[Black "Grutter, Tim"]
[Result "0-1"]
[ECO "E60"]
[WhiteElo "2154"]
[BlackElo "2091"]
[Annotator "NA"]
[PlyCount "140"]
[EventDate "2019.07.23"]
[EventType "swiss"]
[EventCountry "NED"]
[SourceTitle "playchess.com"]
[Source "ChessBase"]
[SourceQuality "1"]
[TimeControl "40/5400+30:1800+30"]

1. Nf3 {[%emt 0:03:01]} Nf6 {[%emt 0:00:00]} 2. g3 {[%emt 0:00:37]} g6 {[%emt 0:00:00]} 3. b3 {[%emt 0:01:58]} Bg7 {[%emt 0:00:06]} 4. Bb2 {[%emt 0:00:06]} O-O {[%emt 0:00:32]} 5. Bg2 {[%emt 0:00:05]} d6 {[%emt 0:00:20]} 6. d4 {[%emt 0:01:11]} e5 {[%emt 0:00:43]} 7. dxe5 {[%emt 0:00:37]} Ng4 {[%emt 0:00:17]} 8. c4 {[%emt 0:02:24]} Nc6 {[%emt 0:01:16]} 9. O-O {[%emt 0:13:00]} Ngxe5 {[%emt 0:02:34]} 10. Nxe5 {[%emt 0:14:00]} Nxe5 {[%emt 0:01:50]} 11. Nc3 {[%emt 0:01:22]} Rb8 {[%emt 0:09:08]} 12. Qd2 {[%emt 0:01:36]} f5 {[%emt 0:07:05]} 13. Nd5 {[%emt 0:13:15]} a6 {[%emt 0:30:30]} 14. Rac1 {[%emt 0:05:02]} Be6 {[%emt 0:06:47]} 15. h3 {[%emt 0:11:07]} Qd7 {[%emt 0:08:58]} 16. f4 {[%emt 0:01:28]} Nc6 {[%emt 0:00:10]} 17. e3 {[%emt 0:03:19]} Rbe8 {[%emt 0:06:02]} 18. Rfe1 {[%emt 0:02:22]} h6 {[%emt 0:01:03]} 19. b4 {[%emt 0:02:43]} Nb8 {[%emt 0:04:04]} 20. Bxg7 {[%emt 0:08:00]} Qxg7 {[%emt 0:00:15]} 21. Qc3 {[%emt 0:00:22]} c6 {[%emt 0:04:07]} 22. Qxg7+ {[%emt 0:01:15]} Kxg7 {[%emt 0:00:01]} 23. Nc7 {[%emt 0:00:27]} Re7 {[%emt 0:00:05]} 24. Nxe6+ {[%emt 0:00:07]} Rxe6 {[%emt 0:00:02]} 25. b5 {[%emt 0:02:19]} axb5 {[%emt 0:02:19]} 26. cxb5 {[%emt 0:00:07]} d5 {[%emt 0:00:12]} 27. a4 {[%emt 0:02:14]} Nd7 {[%emt 0:03:43]} 28. bxc6 {[%emt 0:00:26]} bxc6 {[%emt 0:00:05]} 29. Rb1 {[%emt 0:02:34]} Nc5 {[%emt 0:00:38]} 30. a5 {[%emt 0:05:35]} Ra8 {[%emt 0:00:54]} 31. Ra1 {[%emt 0:00:06]} Re7 {[%emt 0:00:51]} 32. Ra3 {[%emt 0:00:55]} Rea7 {[%emt 0:01:48]} 33. Rea1 {[%emt 0:01:20]} Kf6 {[%emt 0:00:47]} 34. Bf1 {[%emt 0:00:32]} Ke6 {[%emt 0:00:56]} 35. a6 {[%emt 0:00:20]} Kd6 {[%emt 0:00:49]} 36. Rc1 {[%emt 0:00:49]} Ne6 {[%emt 0:01:14]} 37. Rb3 {[%emt 0:00:56]} Rc8 {[%emt 0:00:59]} 38. Rb6 {[%emt 0:00:33]} Nc5 {[%emt 0:03:07]} 39. g4 {[%emt 0:00:42]} Nd7 {[%emt 0:00:59]} 40. Rb2 {[%emt 0:00:31]} fxg4 {[%emt 0:01:48]} 41. hxg4 {[%emt 0:01:55]} Rb8 {[%emt 0:07:58]} 42. Rh2 {[%emt 0:01:08]} Rh8 {[%emt 0:01:29]} 43. g5 {[%emt 0:02:07]} h5 {[%emt 0:00:32]} 44. Rhc2 {[%emt 0:11:20]} c5 {[%emt 0:03:36]} 45. Rd1 {[%emt 0:02:36]} Kc6 {[%emt 0:02:43]} 46. Rb2 {[%emt 0:01:42]} Nb6 {[%emt 0:07:46]} 47. Bb5+ {[%emt 0:00:03]} Kc7 {[%emt 0:00:06]} 48. Kf2 {[%emt 0:02:15]} c4 {[%emt 0:02:00]} 49. Kf3 {[%emt 0:00:56]} Rb8 {[%emt 0:01:54]} 50. Rg2 {[%emt 0:01:21]} Kd6 {[%emt 0:00:31]} 51. f5 {[%emt 0:02:04]} Kc5 {[%emt 0:00:37]} 52. Rb1 {[%emt 0:02:00]} Na4 {[%emt 0:01:03]} 53. Bxa4 {[%emt 0:00:42]} Rxb1 {[%emt 0:00:05]} 54. fxg6 {[%emt 0:00:06]} Rxa6 {[%emt 0:02:27]} 55. Be8 {[%emt 0:02:01]} Rbb6 {[%emt 0:04:41]} 56. Kf4 {[%emt 0:01:43]} Rxg6 {[%emt 0:00:17]} 57. Bxg6 {[%emt 0:00:07]} Rxg6 {[%emt 0:00:01]} 58. Kf5 {[%emt 0:00:06]} Rg8 {[%emt 0:00:03]} 59. Rh2 {[%emt 0:04:03]} c3 {[%emt 0:00:25]} 60. g6 {[%emt 0:01:44]} Kc4 {[%emt 0:00:19]} 61. Kf6 {[%emt 0:00:11]} Kd3 {[%emt 0:00:22]} 62. Rxh5 {[%emt 0:00:45]} Kc4 {[%emt 0:04:26]} 63. Kf7 {[%emt 0:00:36]} Rc8 {[%emt 0:00:13]} 64. g7 {[%emt 0:01:06]} c2 {[%emt 0:00:50]} 65. Rh1 {[%emt 0:00:00]} Kd3 {[%emt 0:00:14]} 66. g8=Q {[%emt 0:00:28]} Rxg8 {[%emt 0:00:04]} 67. Kxg8 {[%emt 0:00:01]} Kxe3 {[%emt 0:00:18]} 68. Kf7 {[%emt 0:00:04]} d4 {[%emt 0:00:11]} 69. Ke6 {[%emt 0:00:08]} d3 {[%emt 0:00:14]} 70. Kd5 {[%emt 0:00:24]} d2 {[%emt 0:00:12]} 0-1

[Event "Dutch Open-ch 2019"]
[Site "Dieren"]
[Date "2019.07.31"]
[Round "8.1"]
[White "Bosboom, Manuel"]
[Black "Van Foreest, Lucas"]
[Result "1-0"]
[ECO "D02"]
[WhiteElo "2418"]
[BlackElo "2521"]
[Annotator "ChessBase"]
[PlyCount "71"]
[EventDate "2019.07.23"]
[EventType "swiss"]
[EventCountry "NED"]
[SourceTitle "playchess.com"]
[Source "ChessBase"]
[SourceQuality "1"]
[TimeControl "40/5400+30:1800+30"]

1. d4 {[%emt 0:00:00]} Nf6 {[%emt 0:01:37]} 2. Bf4 {[%emt 0:00:08]} d5 {[%emt 0:00:10]} 3. e3 {[%emt 0:00:12]} e6 {[%emt 0:00:04]} 4. Nf3 {[%emt 0:00:42]} c5 {[%emt 0:00:07]} 5. c3 {[%emt 0:00:27]} Nc6 {[%emt 0:00:04]} 6. Nbd2 {[%emt 0:00:21]} Nh5 {[%emt 0:00:04]} 7. Bg5 {[%emt 0:02:10]} f6 {[%emt 0:00:05]} 8. Bh4 {[%emt 0:00:54]} g6 {[%emt 0:00:15]} 9. g4 {[%emt 0:33:36]} g5 {[%emt 0:15:36]} 10. gxh5 {[%emt 0:24:39]} gxh4 {[%emt 0:01:13]} 11. dxc5 {[%emt 0:01:09]} Bxc5 {[%emt 0:03:47]} 12. Nb3 {[%emt 0:03:32]} Be7 {[%emt 0:02:53]} 13. Rg1 {[%emt 0:04:39]} Bd7 {[%emt 0:01:24]} 14. Qc2 {[%emt 0:05:35]} f5 {[%emt 0:00:34]} 15. O-O-O {[%emt 0:01:19]} Qc7 {[%emt 1:09:37]} 16. Kb1 {[%emt 0:01:35]} O-O-O {[%emt 0:00:00]} 17. c4 {[%emt 0:01:19]} Nb4 {[%emt 0:00:00]} 18. Qc3 {[%emt 0:02:25]} dxc4 {[%emt 0:00:00]} 19. Bxc4 {[%emt 0:01:08]} Kb8 {[%emt 0:00:00]} 20. Nbd4 {[%emt 0:02:17]} Bc6 {[%emt 0:00:00]} 21. a3 {[%emt 0:03:40]} Be4+ {[%emt 0:00:00]} 22. Ka1 {[%emt 0:00:15]} Nc2+ {[%emt 0:00:00]} 23. Ka2 {[%emt 0:02:38]} Nxd4 {[%emt 0:00:00]} 24. Nxd4 {[%emt 0:00:04]} Bf6 {[%emt 0:00:00]} 25. Bxe6 {[%emt 0:00:53]} Qxh2 {[%emt 0:00:00]} 26. f3 {[%emt 0:00:44]} Bxd4 {[%emt 0:00:00]} 27. exd4 {[%emt 0:00:01]} Bd5+ {[%emt 0:00:00]} 28. Bxd5 {[%emt 0:00:01]} Rxd5 {[%emt 0:00:00]} 29. Rg7 {[%emt 0:00:12]} Rb5 {[%emt 0:00:13]} 30. d5 {[%emt 0:02:00]} Rc8 {[%emt 0:01:19]} 31. Qd4 {[%emt 0:00:55]} Qd6 {[%emt 0:01:06]} 32. Rxh7 {[%emt 0:00:09]} h3 {[%emt 0:00:08]} 33. Rh8 {[%emt 0:00:29]} h2 {[%emt 0:04:23]} 34. Rc1 {[%emt 0:00:34]} Rd8 {[%emt 0:01:12]} 35. Qe5 {[%emt 0:00:27]} Rxb2+ {[%emt 0:00:38]} 36. Ka1 {[%emt 0:01:20]} 1-0

[Event "Dutch Open-ch 2019"]
[Site "Dieren"]
[Date "2019.07.31"]
[Round "8.3"]
[White "Pruijssers, Roeland"]
[Black "Mohite, Ranveer"]
[Result "1-0"]
[ECO "B56"]
[WhiteElo "2534"]
[BlackElo "2229"]
[Annotator "ChessBase"]
[PlyCount "83"]
[EventDate "2019.07.23"]
[EventType "swiss"]
[EventCountry "NED"]
[SourceTitle "playchess.com"]
[Source "ChessBase"]
[SourceQuality "1"]
[TimeControl "40/5400+30:1800+30"]

1. e4 {[%emt 0:00:00]} c5 {[%emt 0:05:39]} 2. Nf3 {[%emt 0:00:00]} d6 {[%emt 0:00:15]} 3. d4 {[%emt 0:00:04]} cxd4 {[%emt 0:00:14]} 4. Nxd4 {[%emt 0:00:07]} Nf6 {[%emt 0:00:08]} 5. Nc3 {[%emt 0:00:07]} Nc6 {[%emt 0:01:12]} 6. f3 {[%emt 0:00:19]} e5 {[%emt 0:02:27]} 7. Nb3 {[%emt 0:00:49]} Be7 {[%emt 0:00:41]} 8. Be3 {[%emt 0:00:16]} O-O {[%emt 0:03:01]} 9. Qd2 {[%emt 0:00:09]} a5 {[%emt 0:02:03]} 10. Bb5 {[%emt 0:01:15]} Be6 {[%emt 0:07:02]} 11. O-O-O {[%emt 0:03:23]} Na7 {[%emt 0:04:10]} 12. Bxa7 {[%emt 0:05:31]} Rxa7 {[%emt 0:01:02]} 13. a4 {[%emt 0:03:19]} b6 {[%emt 0:08:21]} 14. Kb1 {[%emt 0:19:14]} Rc7 {[%emt 0:04:46]} 15. Qd3 {[%emt 0:09:06]} Qc8 {[%emt 0:12:16]} 16. g4 {[%emt 0:00:41]} Rd8 {[%emt 0:10:21]} 17. Nd5 {[%emt 0:00:12]} Nxd5 {[%emt 0:00:16]} 18. exd5 {[%emt 0:00:07]} Bd7 {[%emt 0:00:08]} 19. Nd2 {[%emt 0:06:18]} Bxb5 {[%emt 0:02:06]} 20. Qxb5 {[%emt 0:06:46]} Bg5 {[%emt 0:04:03]} 21. Ne4 {[%emt 0:03:37]} Bf4 {[%emt 0:00:03]} 22. c3 {[%emt 0:05:07]} Qd7 {[%emt 0:07:44]} 23. Qxb6 {[%emt 0:08:29]} Rcc8 {[%emt 0:02:07]} 24. Qb5 {[%emt 0:05:06]} Qa7 {[%emt 0:00:52]} 25. Qd3 {[%emt 0:05:42]} Rb8 {[%emt 0:01:33]} 26. Ka2 {[%emt 0:01:32]} Rb6 {[%emt 0:10:19]} 27. b3 {[%emt 0:02:50]} Rdb8 {[%emt 0:00:25]} 28. Rb1 {[%emt 0:00:06]} Qb7 {[%emt 0:01:53]} 29. c4 {[%emt 0:00:18]} Rb4 {[%emt 0:01:02]} 30. Nxd6 {[%emt 0:01:46]} Qb6 {[%emt 0:02:01]} 31. Nb5 {[%emt 0:00:59]} Qc5 {[%emt 0:01:42]} 32. Rb2 {[%emt 0:03:09]} Bg5 {[%emt 0:01:18]} 33. Re1 {[%emt 0:00:59]} g6 {[%emt 0:02:06]} 34. Rc2 {[%emt 0:00:53]} Bf6 {[%emt 0:01:04]} 35. d6 {[%emt 0:01:28]} e4 {[%emt 0:00:27]} 36. fxe4 {[%emt 0:02:22]} Qe5 {[%emt 0:00:56]} 37. Qd5 {[%emt 0:01:01]} Qf4 {[%emt 0:00:37]} 38. e5 {[%emt 0:00:24]} R8xb5 {[%emt 0:01:58]} 39. cxb5 {[%emt 0:02:20]} Rxa4+ {[%emt 0:00:14]} 40. bxa4 {[%emt 0:00:23]} Qxa4+ {[%emt 0:00:45]} 41. Kb2 {[%emt 0:30:07]} Qb4+ {[%emt 0:30:21]} 42. Qb3 {[%emt 0:00:21]} 1-0

[Event "Dutch Open-ch 2019"]
[Site "Dieren"]
[Date "2019.07.31"]
[Round "8.5"]
[White "Ikonnikov, Vyacheslav"]
[Black "David, Alberto"]
[Result "0-1"]
[ECO "E10"]
[WhiteElo "2499"]
[BlackElo "2553"]
[Annotator "ChessBase"]
[PlyCount "92"]
[EventDate "2019.07.23"]
[EventType "swiss"]
[EventCountry "NED"]
[SourceTitle "playchess.com"]
[Source "ChessBase"]
[SourceQuality "1"]
[TimeControl "40/5400+30:1800+30"]

1. d4 {[%emt 0:00:00]} Nf6 {[%emt 0:00:00]} 2. Nf3 {[%emt 0:00:00]} c5 {[%emt 0:00:00]} 3. d5 {[%emt 0:02:03]} b5 {[%emt 0:00:10]} 4. c4 {[%emt 0:01:09]} e6 {[%emt 0:03:45]} 5. Bg5 {[%emt 0:00:30]} b4 {[%emt 0:00:59]} 6. e4 {[%emt 0:02:39]} d6 {[%emt 0:01:17]} 7. Bd3 {[%emt 0:04:11]} Be7 {[%emt 0:00:25]} 8. Be3 {[%emt 0:16:14]} O-O {[%emt 0:03:00]} 9. h3 {[%emt 0:00:47]} a5 {[%emt 0:30:05]} 10. a4 {[%emt 0:04:07]} Na6 {[%emt 0:07:46]} 11. b3 {[%emt 0:02:56]} Nc7 {[%emt 0:00:45]} 12. O-O {[%emt 0:00:58]} Nd7 {[%emt 0:01:40]} 13. Ra2 {[%emt 0:02:22]} Bf6 {[%emt 0:00:54]} 14. Re2 {[%emt 0:00:34]} Bb7 {[%emt 0:06:59]} 15. Bc2 {[%emt 0:10:56]} Re8 {[%emt 0:04:41]} 16. Bf4 {[%emt 0:01:12]} Ra6 {[%emt 0:03:49]} 17. Rd2 {[%emt 0:05:09]} e5 {[%emt 0:05:46]} 18. Be3 {[%emt 0:00:35]} Nf8 {[%emt 0:02:21]} 19. g3 {[%emt 0:01:08]} Bc8 {[%emt 0:01:49]} 20. Kg2 {[%emt 0:00:06]} g6 {[%emt 0:00:49]} 21. Bh6 {[%emt 0:09:34]} Bh8 {[%emt 0:10:58]} 22. Re2 {[%emt 0:03:30]} Ra7 {[%emt 0:01:59]} 23. Nbd2 {[%emt 0:01:37]} Na8 {[%emt 0:01:37]} 24. Qb1 {[%emt 0:01:18]} Nb6 {[%emt 0:00:53]} 25. Rh1 {[%emt 0:01:31]} Bg7 {[%emt 0:03:31]} 26. Be3 {[%emt 0:03:41]} h5 {[%emt 0:04:36]} 27. h4 {[%emt 0:02:43]} Nh7 {[%emt 0:00:53]} 28. Ng5 {[%emt 0:00:11]} Rf8 {[%emt 0:00:32]} 29. Nxh7 {[%emt 0:01:17]} Kxh7 {[%emt 0:00:03]} 30. Nf3 {[%emt 0:01:31]} f6 {[%emt 0:01:44]} 31. Ree1 {[%emt 0:01:56]} Re7 {[%emt 0:00:25]} 32. Nd2 {[%emt 0:00:38]} Kg8 {[%emt 0:00:50]} 33. Qd1 {[%emt 0:01:09]} Kf7 {[%emt 0:00:48]} 34. f4 {[%emt 0:00:53]} exf4 {[%emt 0:00:28]} 35. gxf4 {[%emt 0:01:41]} Bg4 {[%emt 0:00:06]} 36. Nf3 {[%emt 0:00:29]} Rfe8 {[%emt 0:00:25]} 37. Bf2 {[%emt 0:01:08]} Kg8 {[%emt 0:01:00]} 38. Qd3 {[%emt 0:02:23]} Rf8 {[%emt 0:00:39]} 39. Nh2 {[%emt 0:00:32]} Qd7 {[%emt 0:00:31]} 40. Qg3 {[%emt 0:00:56]} f5 {[%emt 0:00:19]} 41. exf5 {[%emt 0:40:54]} Rxe1 {[%emt 0:01:15]} 42. Rxe1 {[%emt 0:00:00]} Bxf5 {[%emt 0:00:53]} 43. Bxf5 {[%emt 0:00:00]} Qxf5 {[%emt 0:00:12]} 44. Re6 {[%emt 0:00:00]} Nxd5 {[%emt 0:00:29]} 45. Rxd6 {[%emt 0:00:00]} Nxf4+ {[%emt 0:00:42]} 46. Kf1 {[%emt 0:00:00]} Qb1+ {[%emt 0:00:52]} 0-1